Workbook

Sheet Instructions
B1: *******To use this worksheet, MACROS MUST BE ENABLED. ******* If you chose to disable Macros, Close, Re-Open, and Enable Macros You may have to change Excel's Macro security settings to Medium To Change Macro Security settings -(Excel 97-2003): -Go to the Tools Menu, Select Options -Go to the Security Tab -Press the "Macro Security" Button -Choose medium. -Close Excel, Re-Open, and Enable Macros To Change Macro Security settings -(Excel 2007): -Click the "Office button" -Click the "Excel Options" button in the lower right. -Click the "Trust Center" button on the left. Then, at the bottom right, select "Trust Center Settings" -Select "Macro Settings," then select the radio button for "Disable all macros with notification." -Close Excel, Re-Open, and Enable Macros If you are still having issues enabling macros, it may be one of the following: -Your anti-virus software may be blocking execution of the macro - try temporarily disabling Your anti-virus -Visual Basic for Applications (VBA) may not have been installed with excel. Re-install excel, and ensure VBA is selected
A2: Any alteration of the worksheets in this workbook, other than the entry of data into the designated input fields, could result in delays in the processing or rejection of your return.
A3: Group Types REGULAR ENTITY, MOTOR CARRIER and FINANCIAL ORGANIZATION worksheets are the same with the exception of the WV apportionment factor calculation. Be sure to use the correct UB-CR worksheet or worksheets applicable to your Combined Group.
B4: Note: Red text indicates calculated fields with no data entry permitted
B5: Corporate Net Income Tax | C5: Entity Data | D5: Eliminations | E5: Combined
B6: Name of Business | C6: Enter full name of the business
B7: FEIN | C7: Enter FEIN, requires exactly nine digits ##-#######
B8: Entity Type | C8: This will auto populate
A9: Part 1- Increasing Adjustments
B10: Column 1 | C10: Enter Federal taxable income from the 1120 | D10: Enter Eliminations | E10: Combined Column 1 all entities minus eliminations
B11: For the remainder of the currency inputs, positive whole dollar values are required. If you are trying to use a negative value as an increasing adjustment, it may be entered on the decreasing adjustment line as a positive amount. If you are trying to use a negative value as a decreasing adjustment, it may be entered on the increasing adjustment line as a positive amount. A statement of explanation must be included with your return. Eliminations can be both positive or negative.
B12: Column 2a | C12: Enter exempt interest or dividends not exempt from state tax | D12: Enter Eliminations | E12: Combined Column 2a all entities minus eliminations
B13: Column 2b | C13: Enter US Obligation interest/dividends not exempt from state tax | D13: Enter Eliminations | E13: Combined Column 2b all entities minus eliminations
B14: Column 2c | C14: Enter Income/other tax based upon net income | D14: Enter Eliminations | E14: Combined Column 2c all entities minus eliminations
B15: Column 2d | C15: Enter Federal depreciation/amortization for wholly WV corporation water/air pollution facilities | D15: Enter Eliminations | E15: Combined Column 2d all entities minus eliminations
B16: Column 2e | C16: Enter unrelated business taxable income of a corporation exempt from federal tax (IRC Sec. 512) | D16: Enter Eliminations | E16: Combined Column 2e all entities minus eliminations
B17: Column 2f | C17: Enter Federal net operating loss | D17: Enter Eliminations | E17: Combined Column 2f all entities minus eliminations
B18: Column 2g | C18: Enter contributions to NIPA | D18: Enter Eliminations | E18: Combined Column 2g all entities minus eliminations
B19: Column 2h | C19: Enter Net operating losses from sources outside the U.S. | D19: Enter Eliminations | E19: Combined Column 2h all entities minus eliminations
B20: Column 2i | C20: Enter Foreign taxes deducted on your federal return | D20: Enter Eliminations | E20: Combined Column 2i all entities minus eliminations
B21: Column 2j | C21: Enter add back for expenses related to certain REIT’s and Regulated Investment Companies and certain interest and intangible expenses (WV Code §11-24-4b) | D21: Enter Eliminations | E21: Combined Column 2j all entities minus eliminations
B22: Column 2k | C22: Enter Other increasing adjustments - (must include a statement of explanation with your return) | D22: Enter Eliminations | E22: Combined Column 2k all entities minus eliminations
B23: Column 3 | C23: Total increasing adjustments – as calculated | E23: Combined sum of Columns 2a through 2k for each entity minus eliminations
A24: Part 2- Decreasing Adjustments
B25: Column 4a | C25: Enter Refund/credit on taxes based upon net income included in federal taxable income | D25: Enter Eliminations | E25: Combined Column 4a all entities minus eliminations
B26: Column 4b | C26: Enter Interest expense on obligations/securities not allowed in determining federal taxable income | D26: Enter Eliminations | E26: Combined Column 4b all entities minus eliminations
B27: Column 4c | C27: Enter Salary expense not allowed on federal return due to claiming Work Opportunity Credit | D27: Enter Eliminations | E27: Combined Column 4c all entities minus eliminations
B28: Column 4d | C28: Enter Foreign dividend gross-up (IRC Sec. 78) | D28: Enter Eliminations | E28: Combined Column 4d all entities minus eliminations
B29: Column 4e | C29: Enter Subpart F income (IRC Sec. 951) | D29: Enter Eliminations | E29: Combined Column 4e all entities minus eliminations
B30: Column 4f | C30: Enter Taxable income from sources outside US | D30: Enter Eliminations | E30: Combined Column 4f all entities minus eliminations
B31: Column 4g | C31: Enter Cost of wholly WV water/air pollution control facilities | D31: Enter Eliminations | E31: Combined Column 4g all entities minus eliminations
B32: Column 4h | C32: Enter Federal taxable income employer contributions to medical savings accounts withdrawn for nonmedical purposes | D32: Enter Eliminations | E32: Combined Column 4h all entities minus eliminations
B33: Column 4i | C33: Enter Allowance for obligations/investments | D33: Enter Eliminations | E33: Combined Column 4i all entities minus eliminations
B34: Column 4j | C34: Enter Other decreasing adjustments - (must include a statement of explanation with your return) | D34: Ener Eliminations | E34: Combined Column 4j all entities minus eliminations
B35: Column 5 | C35: Total decreasing adjustments – as calculated. | D35: Ener Eliminations | E35: Combined sum of Columns 4a through 4j for each entity minus eliminations
A36: PART 3- Taxable Income Calculation
B37: Column 6 | C37: Adjusted taxable income - as calculated | D37: Enter Eliminations | E37: Combined sum of Column 1 plus Column 3 minus Column 5
B38: Column 7 | C38: Enter total nonbusiness income everywhere | D38: Enter Eliminations | E38: Combined Column 7 all entities minus eliminations
B39: Column 8 | C39: Enter total non-unitary business income everywhere | D39: Enter Eliminations | E39: Combined Column 8 all entities minus eliminations
B40: Column 9 | C40: Income subject to apportionment - as calculated | D40: Enter Eliminations | E40: Combined Column 6 minus Column 7 minus Column 8
B41: Column 10 | C41: Group income subject to apportionment - as calculated | D41: Enter Eliminations | E41: Same as Combined Column 9
B42: APPORTIONMENT FACTOR CALCULATION - APPORTIONMENT CALCULATION BASED UPON GROUP TYPE (SEE BELOW)
B43: Column 11 | C43: WV Apportionment factor- as calculated *(see Apportionment Factor Calculation section below) | E43: Combined sum of Column 11 all entities
B44: Column 12 | C44: WV apportioned income -as calculated | E44: Combined sum of Column 12 all entities
B45: Column 13 | C45: Enter nonbusiness income allocated to WV | E45: Combined sum of Column 13 all entities
B46: Column 14 | C46: Enter total non-unitary business income apportioned to WV | E46: Combined sum of Column 14 all entities
B47: Column 15 | C47: WV taxable income | E47: Combined sum of Columns 12, 13, and 14 all entities
A48: Part 4 - NOL Section
B49: NOL1 | C49: NOL generated as a result of a consolidated return filed prior to 2009
B50: NOL2 | C50: NOL carryforward generated by the entity from an individual return or combined report
B51: NOL3 | C51: Total NOL available for use by entity in this period-as calculated
B52: NOL4 | C52: NOL generated by entity in this period- as calculated
B53: NOL5 | C53: NOL available for use by entity in future periods-as calculated
B54: Column 16 | C54: WV Net Operating Loss used this tax period -as calculated | E54: sum of all entities' column 16
B55: Column 17 | C55: Subtotal- as calculated
B56: Column 18 | C56: REIT Inclusion and other WV Taxable income
B57: Column 19 | C57: WV net taxable income-as calculated
B58: Column 20 | C58: Tax rate - as entered "0.065"
B59: Column 21 | C59: WV income tax before credits- as calculated | E59: sum of all entities' WV income tax before credits
A60: PART 5 - Credits
B61: If you are claiming a credit, the appropriate form or schedule must also be submitted for the return to be processed.
B62: C1.a. | C62: Economic Opportunity Tax Credit (§11-13Q), Schedule WV/EOTC-1 required
B63: C1.b. | C63: Manufacturing Investment Tax Credit (§11-13S) Schedule WV/MITC-1 required
B64: C1.c. | C64: Historic Rehabilitated Buildings Investment Credit (§11-24-23a) Schedule RBIC required
B65: C1.d. | C65: West Virginia Neighborhood Investment Program Credit (§11-13J) Form WV/NIPA-2 required
B66: C1.e. | C66: Environmental Agricultural Equipment Tax Credit (§11-13k) Form WV/AG-1 required
B67: C1.f. | C67: Electric, Gas, and Water Utilities Rate Reduction Credit (§11-24-11) Schedule L required
B68: C1.g. | C68: Telephone Utilities Rate Reduction Credit (§11-24-11a) Schedule K required
B69: C1.h. | C69: West Virginia Military Incentive Credit (§11-24-12) Schedule J required
B70: C1.i. | C70: Apprentice Training Tax Credit (§11-13w) Schedule WV/ATTC-1 required
B71: C1.j. | C71: Film Industry Tax Credit (§11-13x) Schedule WVFIIA-TCS required
B72: C1.k. | C72: Manufacturing Property Tax Adjustment Credit (§11-13Y) Schedule WV/MPTAC-1 required
B73: C1.l. | C73: Alternative Fuel Tax Credit (§11-6d) Schedule AFTC-1 required
B74: C1.m. | C74: Innovative Mine Safety Technology Tax Credit (§11-13BB) Schedule IMSTTC-1 required
B75: C1.n. | C75: Farm to Food Bank Tax Credit (§11-13DD) required
B76: C2 | C76: Total Credits Claimed- as calculated
B77: C3 | C77: Total Credits available for use by entity this period-as calculated | E77: sum of all entities' total credits available for use this period
A78: PART 6- WV Net income
B79: C4 | C79: WV Net Income tax- (enter Combined Total of this column on line 9 of the CNF-120) | E79: Sum of all entities' WV Net income tax
E80: (Add the Combined Total of this column for each Group Type and enter that sum on line 9 of the CNF-120)
B81: Note: Red text indicates calculated fields with no data entry permitted
A83: APPORTIONMENT FACTOR CALCULATION
A84: REGULAR | B84: WV Property | C84: Enter value of all property in WV for this entity
B85: WV Payroll | C85: Enter value of all payroll in WV for this entity
B86: WV Sales | C86: Enter value of all sales in WV for this entity
B87: WV Sales | C87: Auto populates (Same as Column previous WV Sales)
B88: Everywhere Property per Entity | C88: Enter the amount of Property owned by each entity in all locations (WV and all other). This amount will be summed in the "Everywhere all entities" row. This row will auto calculate. This sum is the amount used in the apportionment factor calculation.
B89: ALL Payroll | C89: Enter the amount of Payroll by each entity in all locations (WV and all other). This amount will be summed in the "Everywhere all entities" row. This row will auto calculate. This sum is the amount used in the apportionment factor calculation.
B90: Adjusted Sales | C90: Enter the amount of Adjusted Sales by each entity in all locations (WV and all other). This is the difference of sales everywhere less the sales to purchasers in a state where you are not subject to tax. This amount will be summed in the "Everywhere all entities" row. This row will auto calculate. This sum is the amount used in the apportionment factor calculation.
B91: Adjusted Sales | C91: Auto populates (same as previous)
B92: Sales to purchasers in a state where you are not subject to tax | C92: Enter the amount of sales in state where you are not subject to sales tax
B93: Column 11 Apportionment Factor | C93: See the CNF 120 APT schedule B, Part 1 for details as to how this apportionment factor is calculated for a single entity. For combined entities, use a similar calculation, except use the sum of all entity’s everywhere property, payroll, and sales as the divisors. ((This Entity's WV Property/Sum All Entities' Everywhere Property) +(This Entity's WV Payroll/Sum All Entities' Everywhere Payroll) +(This Entity's WV Sales/Sum All Entities' Everywhere Sales) +(This Entity's WV Sales/Sum All Entities' Everywhere Sales)) /Number of Times the Sum of All Entities' Everywhere Was Not Zero)
B94: These subcalculations should be hidden. If you submit your UB-CR with the columns revealed, it may result in errors and delay the procesing of your return.
B95: WV Property/ All Property | C95: Sub calculation, should be hidden. If the total of all entities' everywhere property is not equal to zero, divides the entity's WV property by the sum of all entities' property everywhere.
B96: WV Payroll/ All Payroll | C96: Sub calculation, should be hidden. If the total of all entities' everywhere payroll is not equal to zero, divides the entity's WV payroll by the sum of all entities' payroll everywhere.
B97: WV Sales/ All Sales | C97: Sub calculation, should be hidden. If the total of all entities' everywhere sales is not equal to zero, divides the entity's WV sales by the sum of all entities' sales everywhere.
B98: WV Sales/ All Sales2 | C98: Sub calculation, should be hidden. (Same as previous)
B99: Denominator | C99: Sub calculation, should be hidden. Counts the number of times the everywhere total for all entities was not zero.
B100: WV Property/ All Property2 | C100: Sub calculation, should be hidden. If the sum of all entities' everywhere property is not zero, this will equal the quotient calculated earlier. If it was zero, this will equal zero.
B101: WV Payroll/ All Payroll3 | C101: Sub calculation, should be hidden. If the sum of all entities' everywhere property is not zero, this will equal the quotient calculated earlier. If it was zero, this will equal zero.
B102: WV Sales/ All Sales4 | C102: Sub calculation, should be hidden. If the sum of all entities' everywhere property is not zero, this will equal the quotient calculated earlier. If it was zero, this will equal zero.
B103: WV Sales/ All Sales5 | C103: Sub calculation, should be hidden. (Same as previous)
A104: MOTOR CARRIER | B104: WV Vehicle Mileage | C104: Enter the entity's WV Vehicle Mileage
B105: Vehcile Milage everywhere per entity | C105: Enter the entity's everywhere Vehicle Mileage
B106: Column 11 Apportionment Factor | C106: See the CNF 120 APT schedule B, Part 2 for details as to how this apportionment factor is calculated for a single entity. For Combined entities, use a similar calculation, except use the sum of all entity’s everywhere mileage Entity's WV vehicle mileage/sum of all entities' everywhere mileage
A107: FINANCIAL ORGANIZATION | B107: WV Gross Receipts | C107: Enter the entity's WV gross Reciepts
B108: Everywhere Gross Receipts per Entity | C108: Enter the entity's everywhere gross Reciepts
B109: Column 11 Apportionment Factor | C109: See the CNF 120 APT schedule B, Part 3 for details as to how this apportionment factor is calculated. For Combined entities, use a similar calculation, except use the sum of all entity’s everywhere gross receipts. Entity's WV gross receipts /sum of all entities' everywhere gross receipts

Sheet Surety Information
A1: Surety Business Name | D1: SOME COMPANY INC
A3: Surety FEIN | D3: 111100003
A5: Tax Period | D5: 2018-02-04 | E5: to | F5: 2019-02-02

Sheet Regular Entity
D1: Increasing Adjustments | Q1: Decreasing Adjustments | AB1: Taxable Income Calculation | BD1: NOL Section | BO1: Credits Section
AE2: =$AE$9 -> 1062065 | AG2: 0 | AH2: 0 | AI2: ALL Entities | AK2: =SUBTOTAL(109,AK4:AK$7) -> 18909 | AL2: =SUBTOTAL(109,AL4:AL$7) -> 61874 | AM2: =SUBTOTAL(109,AM4:AM$7) -> 1238243 | AN2: =SUBTOTAL(109,AN4:AN$7) -> 1238243 | AO2: =SUBTOTAL(109,AO4:AO$7) -> 2000 | AP2: Subcalculations for apportionment
A3: Name of Business | B3: FEIN | C3: Entity Type | D3: 1. Federal Taxable Income | E3: 2a. Interest or dividends from state/ local bond/securities | F3: 2b. US obligation interest/dividends not exempt from state tax | G3: 2c. Income/other tax based upon net income deducted on your federal return | H3: 2d. Federal depreciation/amorization for wholly WV corporation water/air polution control facilities | I3: 2e. Unrelated business taxable income of a corporation exempt from federal tax (IRC Sec. 512) | J3: 2f. Federal Net Operating Loss Deduction | K3: 2g. WV Neighborhood Investment Programs Tax Credit (charitable contributions to NIPA) | L3: 2h. Net operating loss from sources outside US. | M3: 2i. Foreign Taxes deducted on your federal return | N3: 2j. Add back for expenses related to certain REIT's and Regulated Investment Companies and certain interest and intangible expenses (WV Code §11-24-4b) | O3: 2k. Other increasing adjustments | P3: 3. Total increasing adjustments | Q3: 4a. Refund/credit on taxes based upon net income included in federal taxable income | R3: 4b. Interest expense on obligations/securities not allowed in determining federal taxable income | S3: 4c. Salary expense not allowed on federal return due to claiming federal jobs credit | T3: 4d. Foreign dividend gross-up (IRC Sec. 78) | U3: 4e. Subpart F income (IRC Sec. 951) | V3: 4f. Taxable income from sources outside US | W3: 4g. Cost of wholly WV water/air pollution control facilities | X3: 4h. Fed taxable income employer contributions to medical savings accounts withdrawn for non-medical purposes | Y3: 4i. Allowance for obligations/investments (Schedule B-1, line 9) | Z3: 4j. Other decreasing adjustments | AA3: 5. Total decreasing adjustments | AB3: 6. Adj. taxable income-add lines 1 & 3, subtract line 5 | AC3: 7. Total nonbusiness income allocated everywhere. | AD3: 8. Total non-unitary business income | AE3: 9. Income subject to apportionment | AF3: 10. Group income subject to apportionment for each member | AG3: WV Property | AH3: WV Payroll | AI3: WV Sales | AJ3: WV Sales (Same as Column AI) | AK3: Everywhere Property per Entity | AL3: Everywhere Payroll per Entity | AM3: Everywhere Adjusted Sales per Entity | AN3: Everywhere Adjusted Sales (sames as Column AM) | AO3: Sales to purchasers in a state where you are not subject to tax | AP3: WV property/ All Property | AQ3: WV Payroll/ All Payroll | AR3: WV Sales/ All Sales | AS3: WV Sales/ All Sales2 | AT3: Denominator | AU3: WV property/ All Property2 | AV3: WV Payroll/ All Payroll3 | AW3: WV Sales/ All Sales4 | AX3: WV Sales/ All Sales5 | AY3: 11. WV apportionment factor | AZ3: 12. WV apportioned income | BA3: 13. Nonbusiness income allocated to WV | BB3: 14. Non-unitary business income apportioned to West Virginia | BC3: 15. WV taxable income | BD3: NOL 1. NOL carryforward generated as a result of a consolidated return filed prior to 2009. | BE3: NOL 2. NOL carryforward generated by the entity from an individual return or combined report. | BF3: NOL 3. Total NOL available for use by entity in this period | BG3: NOL 4. NOL generated by entity in this period. | BH3: NOL 5. NOL available for use by entity in future periods | BI3: 16. WV net operating loss carryforward used in this period (cannot exceed NOL 3.) | BJ3: 17. Subtotal (subtract 16 from 15) | BK3: 18. REIT Inclusion / other WV taxable Income | BL3: 19. WV net taxable income | BM3: 20. Tax rate | BN3: 21. WV income tax before credits | BO3: C1.a. Economic Opportunity Tax Credit (§11-13Q) Schedule WV/EOTC-1 | BP3: C1.b. Manufacturing Investment Tax Credit (§11-13S) Schedule WV/MITC-1 | BQ3: C1.c.Historic Rehabilitated Buildings Investment Credit (§11-24-23a) Schedule RBIC | BR3: C1.d. West Virginia Neighborhood Investment Program Credit (§11-13J) Form WV/NIPA-2 | BS3: C1.e. Environmental Agricultural Equipment Tax Credit (§11-13k) Form WV/AG-1 | BT3: C1.f. Electric, Gas, and Water Utilities Rate Reduction Credit (§11-24-11) Schedule L | BU3: C1.g. Telephone Utilities Rate Reduction Credit (§11-24-11a) Schedule K | BV3: C1.h. West Virginia Military Incentive Credit (§11-24-12) Schedule J | BW3: C1.i. Apprentice Training Tax Credit (§11-13w) Schedule WV/ATTC-1 | BX3: C1.j. Film Industry Tax Credit (§11-13x) Schedule WVFIIA-TCS | BY3: C1.k. Manufacturing Property Tax Adjustment Credit (§11-13Y) Schedule WV/MPTAC-1 | BZ3: C1.l. Alternative Fuel Tax Credit (§11-6d) Schedule AFTC-1 | CA3: C1.m. Innovative Mine Safety Technology Tax Credit (§11-13BB) Schedule IMSTTC-1 | CB3: C1.n. Farm to Food Bank Tax Credit (§11-13DD) | CC3: C2. Total Credits Claimed | CD3: C3. Total Credits available for use by entity this period | CE3: C4. WV net income tax
A4: Some Company Inc | B4: 111100003 | C4: Regular | D4: 10000 | E4: 5454 | F4: 54 | G4: 5448 | H4: 11599 | I4: 458 | J4: 158 | K4: 7889 | L4: 9632 | M4: 787 | N4: 25 | O4: 1000 | P4: =SUM(E4:O4) -> 42504 | Q4: 121 | R4: 44 | S4: 33 | T4: 9 | U4: 458 | V4: 45 | W4: 878 | X4: 87 | Y4: 878 | Z4: 11 | AA4: =SUM(Q4:Z4) -> 2564 | AB4: =D4+P4-AA4 -> 49940 | AC4: 100 | AD4: 50 | AE4: =AB4-(AC4+AD4) -> 49790 | AF4: =$AE$9 -> 1062065 | AG4: 500 | AH4: 1000 | AI4: 21215 | AJ4: =AI4 -> 21215 | AK4: 4444 | AL4: 548 | AM4: 11132 | AN4: =AM4 -> 11132 | AO4: 0 | AP4: =IF($AK$2=0,"NIL",AG4/$AK$2) -> 0.02644243482 | AQ4: =IF($AL$2=0,"NIL", AH4/$AL$2) -> 0.01616187736 | AR4: =IF($AM$2=0,"NIL", AI4/$AM$2) -> 0.01713314753 | AS4: =IF($AN$2=0,"NIL", AJ4/$AN$2) -> 0.01713314753 | AT4: =COUNTIF(AP4:AS4,"<>"&"NIL") -> 4 | AU4: =IF(AP4="NIL", 0, ABS(AP4)) -> 0.02644243482 | AV4: =IF(AQ4="NIL", 0, ABS(AQ4)) -> 0.01616187736 | AW4: 0.01713314753 | AX4: 0.01713314753 | AY4: =ROUND(ABS(IF(AT4,((AU4+AV4+AW4+AX4)/AT4),0)),6) -> 0.019218 | AZ4: =ROUND(AF4*AY4,0) -> 20411 | BA4: 10 | BB4: 5 | BC4: =AZ4+BA4+BB4 -> 20426 | BD4: 500 | BE4: 19200 | BF4: =BD4+BE4 -> 19700 | BG4: =IF(BC4<0,-BC4,0) -> 0 | BH4: =+BF4+BG4-BI4 -> 0 | BI4: =IF(BG4>0,0,(MIN(BC4,BF4))) -> 19700 | BJ4: =BC4-BI4 -> 726 | BK4: 0 | BL4: =+IF(BC4<0,BK4,(BJ4+BK4)) -> 726 | BM4: 0.065 | BN4: =IF(BL4>0,ROUND(BL4*BM4,0),0) -> 47 | BO4: 200 | BP4: 10 | BQ4: 55 | BR4: 5 | BS4: 10 | BT4: 20 | BU4: 10 | BV4: 9 | BW4: 6 | BX4: 5 | BY4: 15 | BZ4: 10 | CA4: 15 | CB4: 25 | CC4: =SUM(BO4:CB4) -> 395 | CD4: =MIN(BN4,CC4) -> 47 | CE4: =BN4-CD4 -> 0
A5: Dollar Tree Mgmt | B5: 541737649 | C5: Regular | D5: -2000 | E5: 212 | F5: 78 | G5: 558 | H5: 1546 | I5: 654 | J5: 311 | K5: 5445 | L5: 2258 | M5: 997 | N5: 30 | O5: 2000 | P5: =SUM(E5:O5) -> 14089 | Q5: 51 | R5: 44 | S5: 448 | T5: 64 | U5: 21 | V5: 21 | W5: 54 | X5: 321 | Y5: 21 | Z5: 2188 | AA5: =SUM(Q5:Z5) -> 3233 | AB5: =D5+P5-AA5 -> 8856 | AC5: 200 | AD5: 500 | AE5: =AB5-(AC5+AD5) -> 8156 | AF5: =$AE$9 -> 1062065 | AG5: 200 | AH5: 2000 | AI5: 21545 | AJ5: =AI5 -> 21545 | AK5: 8889 | AL5: 55445 | AM5: 222112 | AN5: =AM5 -> 222112 | AO5: 0 | AP5: =IF($AK$2=0,"NIL",AG5/$AK$2) -> 0.01057697393 | AQ5: =IF($AL$2=0,"NIL", AH5/$AL$2) -> 0.03232375473 | AR5: =IF($AM$2=0,"NIL", AI5/$AM$2) -> 0.01739965419 | AS5: =IF($AN$2=0,"NIL", AJ5/$AN$2) -> 0.01739965419 | AT5: =COUNTIF(AP5:AS5,"<>"&"NIL") -> 4 | AU5: =IF(AP5="NIL", 0, ABS(AP5)) -> 0.01057697393 | AV5: =IF(AQ5="NIL", 0, ABS(AQ5)) -> 0.03232375473 | AW5: =IF(AR5="NIL", 0, ABS(AR5)) -> 0.01739965419 | AX5: =IF(AS5="NIL", 0, ABS(AS5)) -> 0.01739965419 | AY5: =ROUND(ABS(IF(AT5,((AU5+AV5+AW5+AX5)/AT5),0)),6) -> 0.019425 | AZ5: =ROUND(AF5*AY5,0) -> 20631 | BA5: 20 | BB5: 10 | BC5: =AZ5+BA5+BB5 -> 20661 | BD5: 300 | BE5: 30000 | BF5: =BD5+BE5 -> 30300 | BG5: 0 | BH5: 9639 | BI5: =IF(BG5>0,0,(MIN(BC5,BF5))) -> 20661 | BJ5: =BC5-BI5 -> 0 | BK5: 0 | BL5: =+IF(BC5<0,BK5,(BJ5+BK5)) -> 0 | BM5: 0.065 | BN5: =IF(BL5>0,ROUND(BL5*BM5,0),0) -> 0 | BO5: 10 | BP5: 20 | BQ5: 66 | BR5: 5 | BS5: 10 | BT5: 20 | BU5: 5 | BV5: 8 | BW5: 7 | BX5: 4 | BY5: 16 | BZ5: 10 | CA5: 15 | CB5: 25 | CC5: =SUM(BO5:CB5) -> 221 | CD5: =MIN(BN5,CC5) -> 0 | CE5: =BN5-CD5 -> 0
A6: Dollar Tree Stores | B6: 541737652 | C6: Regular | D6: 600025 | E6: 8 | F6: 54 | G6: 668 | H6: 211 | I6: 12 | J6: 548 | K6: 2147 | L6: 668 | M6: 54 | N6: 40 | O6: 3000 | P6: =SUM(E6:O6) -> 7410 | Q6: 212 | R6: 44 | S6: 77 | T6: 21 | U6: 54 | V6: 78 | W6: 88 | X6: 212 | Y6: 221 | Z6: 2183 | AA6: =SUM(Q6:Z6) -> 3190 | AB6: =D6+P6-AA6 -> 604245 | AC6: 300 | AD6: 30 | AE6: =AB6-(AC6+AD6) -> 603915 | AF6: =$AE$9 -> 1062065 | AG6: 300 | AH6: 3000 | AI6: 878788 | AJ6: =AI6 -> 878788 | AK6: 2455 | AL6: 5548 | AM6: 999999 | AN6: =AM6 -> 999999 | AO6: 2000 | AP6: =IF($AK$2=0,"NIL",AG6/$AK$2) -> 0.01586546089 | AQ6: =IF($AL$2=0,"NIL", AH6/$AL$2) -> 0.04848563209 | AR6: =IF($AM$2=0,"NIL", AI6/$AM$2) -> 0.7097056071 | AS6: =IF($AN$2=0,"NIL", AJ6/$AN$2) -> 0.7097056071 | AT6: =COUNTIF(AP6:AS6,"<>"&"NIL") -> 4 | AU6: =IF(AP6="NIL", 0, ABS(AP6)) -> 0.01586546089 | AV6: 0.04848563209 | AW6: 0.7097056071 | AX6: 0.7097056071 | AY6: =ROUND(ABS(IF(AT6,((AU6+AV6+AW6+AX6)/AT6),0)),6) -> 0.370941 | AZ6: =ROUND(AF6*AY6,0) -> 393963 | BA6: 30 | BB6: 15 | BC6: =AZ6+BA6+BB6 -> 394008 | BD6: 400 | BE6: 94500 | BF6: =BD6+BE6 -> 94900 | BG6: 0 | BH6: 0 | BI6: =IF(BG6>0,0,(MIN(BC6,BF6))) -> 94900 | BJ6: =BC6-BI6 -> 299108 | BK6: 0 | BL6: =+IF(BC6<0,BK6,(BJ6+BK6)) -> 299108 | BM6: 0.065 | BN6: =IF(BL6>0,ROUND(BL6*BM6,0),0) -> 19442 | BO6: 20 | BP6: 30 | BQ6: 77 | BR6: 5 | BS6: 10 | BT6: 20 | BU6: 5 | BV6: 7 | BW6: 8 | BX6: 3 | BY6: 17 | BZ6: 5 | CA6: 15 | CB6: 10 | CC6: =SUM(BO6:CB6) -> 232 | CD6: =MIN(BN6,CC6) -> 232 | CE6: =BN6-CD6 -> 19210
A7: Dollar Tree Props | B7: 541830832 | C7: Regular | D7: 400000 | E7: 787 | F7: 400 | G7: 447 | H7: 55 | I7: 488 | J7: 64 | K7: 68 | L7: 77 | M7: 78 | N7: 50 | O7: 4005 | P7: 6519 | Q7: 54 | R7: 55 | S7: 548 | T7: 4488 | U7: 25 | V7: 65 | W7: 64 | X7: 32 | Y7: 4 | Z7: 55 | AA7: 5390 | AB7: 401129 | AC7: 400 | AD7: 660 | AE7: 400069 | AF7: 1062065 | AG7: 400 | AH7: 400 | AI7: 33215 | AJ7: 33215 | AK7: 3121 | AL7: 333 | AM7: 5000 | AN7: 5000 | AO7: 0 | AP7: 0.02115394786 | AQ7: =IF($AL$2=0,"NIL", AH7/$AL$2) -> 0.006464750945 | AR7: =IF($AM$2=0,"NIL", AI7/$AM$2) -> 0.02682429862 | AS7: =IF($AN$2=0,"NIL", AJ7/$AN$2) -> 0.02682429862 | AT7: 4 | AU7: 0.02115394786 | AV7: 0.006464750945 | AW7: 0.02682429862 | AX7: 0.02682429862 | AY7: 0.020317 | AZ7: =ROUND(AF7*AY7,0) -> 21578 | BA7: 40 | BB7: 20 | BC7: 21638 | BD7: 648 | BE7: 15000 | BF7: 15648 | BG7: 0 | BH7: 0 | BI7: =IF(BG7>0,0,(MIN(BC7,BF7))) -> 15648 | BJ7: 5990 | BK7: 0 | BL7: =+IF(BC7<0,BK7,(BJ7+BK7)) -> 5990 | BM7: 0.065 | BN7: 389 | BO7: 20 | BP7: 40 | BQ7: 88 | BR7: 5 | BS7: 10 | BT7: 20 | BU7: 10 | BV7: 6 | BW7: 9 | BX7: 2 | BY7: 18 | BZ7: 5 | CA7: 15 | CB7: 10 | CC7: 258 | CD7: 258 | CE7: 131
A8: Eliminations | D8: 5 | E8: 61 | F8: -919 | G8: 121 | H8: 11 | I8: -88 | J8: 81 | K8: 49 | L8: 35 | M8: 16 | N8: -995 | O8: 5 | P8: -1623 | Q8: 38 | R8: 87 | S8: -994 | T8: 82 | U8: 58 | V8: -991 | W8: 84 | X8: 52 | Y8: -76 | Z8: 37 | AA8: -1623 | AB8: 5 | AC8: 200 | AD8: -60 | AE8: -135 | AF8: 0 | AY8: 0 | AZ8: =ROUND(Table1[[#This Row],[10. Group income subject to apportionment for each member]]*Table1[[#This Row],[11. WV apportionment factor]],0) -> 0 | BH8: 0 | BK8: 0 | BM8: 0 | BO8: 0 | BP8: 0 | BQ8: 5 | CB8: 0 | CC8: 0 | CD8: 0 | CE8: 0
A9: Combined | D9: =SUM(INDIRECT(ADDRESS(4,COLUMN(D9))&":"&ADDRESS(ROW(D9)-2,COLUMN(D9))))-D8 -> 1008020 | E9: =SUM(INDIRECT(ADDRESS(4,COLUMN(E9))&":"&ADDRESS(ROW(E9)-2,COLUMN(E9))))-E8 -> 6400 | F9: =SUM(INDIRECT(ADDRESS(4,COLUMN(F9))&":"&ADDRESS(ROW(F9)-2,COLUMN(F9))))-F8 -> 1505 | G9: 7000 | H9: 13400 | I9: 1700 | J9: 1000 | K9: 15500 | L9: 12600 | M9: 1900 | N9: 1140 | O9: 10000 | P9: =SUM(INDIRECT(ADDRESS(4,COLUMN(P9))&":"&ADDRESS(ROW(P9)-2,COLUMN(P9))))-P8 -> 72145 | Q9: =SUM(INDIRECT(ADDRESS(4,COLUMN(Q9))&":"&ADDRESS(ROW(Q9)-2,COLUMN(Q9))))-Q8 -> 400 | R9: =SUM(INDIRECT(ADDRESS(4,COLUMN(R9))&":"&ADDRESS(ROW(R9)-2,COLUMN(R9))))-R8 -> 100 | S9: =SUM(INDIRECT(ADDRESS(4,COLUMN(S9))&":"&ADDRESS(ROW(S9)-2,COLUMN(S9))))-S8 -> 2100 | T9: 4500 | U9: 500 | V9: 1200 | W9: 1000 | X9: 600 | Y9: 1200 | Z9: 4400 | AA9: =SUM(INDIRECT(ADDRESS(4,COLUMN(AA9))&":"&ADDRESS(ROW(AA9)-2,COLUMN(AA9))))-AA8 -> 16000 | AB9: =SUM(INDIRECT(ADDRESS(4,COLUMN(AB9))&":"&ADDRESS(ROW(AB9)-2,COLUMN(AB9))))-AB8 -> 1064165 | AC9: =SUM(INDIRECT(ADDRESS(4,COLUMN(AC9))&":"&ADDRESS(ROW(AC9)-2,COLUMN(AC9))))-AC8 -> 800 | AD9: =SUM(INDIRECT(ADDRESS(4,COLUMN(AD9))&":"&ADDRESS(ROW(AD9)-2,COLUMN(AD9))))-AD8 -> 1300 | AE9: =SUM(INDIRECT(ADDRESS(4,COLUMN(AE9))&":"&ADDRESS(ROW(AE9)-2,COLUMN(AE9))))-AE8 -> 1062065 | AF9: 0 | AG9: Everywhere ALL Entities (Sums used in apportionment calculation) | AK9: =$AK$2 -> 18909 | AL9: =$AL$2 -> 61874 | AM9: =$AM$2 -> 1238243 | AN9: =$AN$2 -> 1238243 | AO9: =$AO$2 -> 2000 | AY9: 0 | BH9: -150909 | BI9: =SUM(BI4:BI7) -> 150909 | BK9: 0 | BL9: 0 | BM9: 0 | BN9: =SUM(BN4:BN7) -> 19878 | BO9: 0 | BP9: 0 | BQ9: 0 | CB9: 0 | CC9: 0 | CD9: =SUM(CD4:CD7) -> 537 | CE9: =SUM(CE4:CE7) -> 19341

Sheet Motor Carrier
D1: Increasing Adjustments | Q1: Decreasing Adjustments | AB1: Taxable Income Calculation | AN1: NOL Section | AY1: Credits Section
AE2: =$AE$9 -> 725579
A3: Name of Business | B3: FEIN | C3: Entity Type | D3: 1. Federal Taxable Income | E3: 2a. Interest or dividends from state/ local bond/securities | F3: 2b. US obligation interest/dividends not exempt from state tax | G3: 2c. Income/other tax based upon net income deducted on your federal return | H3: 2d. Federal depreciation/amorization for wholly WV corporation water/air polution control facilities | I3: 2e. Unrelated business taxable income of a corporation exempt from federal tax (IRC Sec. 512) | J3: 2f. Federal Net Operating Loss Deduction | K3: 2g. WV Neighborhood Investment Programs Tax Credit (charitable contributions to NIPA) | L3: 2h. Net operating loss from sources outside US. | M3: 2i. Foreign Taxes deducted on your federal return | N3: 2j. Add back for expenses related to certain REIT's and Regulated Investment Companies and certain interest and intangible expenses (WV Code §11-24-4b) | O3: 2k. Other increasing adjustments | P3: 3. Total increasing adjustments | Q3: 4a. Refund/credit on taxes based upon net income included in federal taxable income | R3: 4b. Interest expense on obligations/securities not allowed in determining federal taxable income | S3: 4c. Salary expense not allowed on federal return due to claiming federal jobs credit | T3: 4d. Foreign dividend gross-up (IRC Sec. 78) | U3: 4e. Subpart F income (IRC Sec. 951) | V3: 4f. Taxable income from sources outside US | W3: 4g. Cost of wholly WV water/air pollution control facilities | X3: 4h. Fed taxable income employer contributions to medical savings accounts withdrawn for non-medical purposes | Y3: 4i. Allowance for obligations/investments (Schedule B-1, line 9) | Z3: 4j. Other decreasing adjustments | AA3: 5. Total decreasing adjustments | AB3: 6. Adj. taxable income-add lines 1 & 3, subtract line 5 | AC3: 7. Total nonbusiness income allocated everywhere. | AD3: 8. Total non-unitary business income | AE3: 9. Income subject to apportionment | AF3: 10. Group income subject to apportionment for each member | AG3: WV Vehicle Mileage | AH3: Vehicle Mileage Everywhere per Entity | AI3: 11. WV apportionment factor | AJ3: 12. WV apportioned income | AK3: 13. Nonbusiness income allocated to WV | AL3: 14. Non-unitary business income apportioned to West Virginia | AM3: 15. WV taxable income | AN3: NOL 1. NOL carryforward generated as a result of a consolidated return filed prior to 2009. | AO3: NOL 2. NOL carryforward generated by the entity from an individual return or combined report. | AP3: NOL 3. Total NOL available for use by entity in this period | AQ3: NOL 4. NOL generated by entity in this period. | AR3: NOL 5. NOL available for use by entity in future periods | AS3: 16. WV net operating loss carryforward used in this period (cannot exceed NOL 3.) | AT3: 17. Subtotal (subtract 16 from 15) | AU3: 18. REIT Inclusion / other WV taxable Income | AV3: 19. WV net taxable income | AW3: 20. Tax rate | AX3: 21. WV income tax before credits | AY3: C1.a. Economic Opportunity Tax Credit (§11-13Q) Schedule WV/EOTC-1 | AZ3: C1.b. Manufacturing Investment Tax Credit (§11-13S) Schedule WV/MITC-1 | BA3: C1.c.Historic Rehabilitated Buildings Investment Credit (§11-24-23a) Schedule RBIC | BB3: C1.d. West Virginia Neighborhood Investment Program Credit (§11-13J) Form WV/NIPA-2 | BC3: C1.e. Environmental Agricultural Equipment Tax Credit (§11-13k) Form WV/AG-1 | BD3: C1.f. Electric, Gas, and Water Utilities Rate Reduction Credit (§11-24-11) Schedule L | BE3: C1.g. Telephone Utilities Rate Reduction Credit (§11-24-11a) Schedule K | BF3: C1.h. West Virginia Military Incentive Credit (§11-24-12) Schedule J | BG3: C1.i. Apprentice Training Tax Credit (§11-13w) Schedule WV/ATTC-1 | BH3: C1.j. Film Industry Tax Credit (§11-13x) Schedule WVFIIA-TCS | BI3: C1.k. Manufacturing Property Tax Adjustment Credit (§11-13Y) Schedule WV/MPTAC-1 | BJ3: C1.l. Alternative Fuel Tax Credit (§11-6d) Schedule AFTC-1 | BK3: C1.m. Innovative Mine Safety Technology Tax Credit (§11-13BB) Schedule IMSTTC-1 | BL3: C1.n. Farm to Food Bank Tax Credit (§11-13DD) | BM3: C2. Total Credits Claimed | BN3: C3. Total Credits available for use by entity this period | BO3: C4. WV net income tax
A4: Dollar Tree Air | B4: 541996968 | C4: Motor Carrier | D4: 1515 | E4: 45554 | F4: 741 | G4: 6987 | H4: 6456 | I4: 545 | J4: 878 | K4: 66 | L4: 878 | M4: 44 | N4: 1603 | O4: 99999 | P4: =SUM(E4:O4) -> 163751 | Q4: 11 | R4: 12 | S4: 13 | T4: 45 | U4: 77 | V4: 99 | W4: 12 | X4: 45 | Y4: 48 | Z4: 78 | AA4: =SUM(Q4:Z4) -> 440 | AB4: =D4+P4-AA4 -> 164826 | AC4: 10 | AD4: 54 | AE4: =AB4-(AC4+AD4) -> 164762 | AF4: =$AE$9 -> 725579 | AG4: 10000 | AH4: 888 | AI4: =ROUND(ABS(IF($AH$9=0, 0, AG4/$AH$9)),6) -> 0.001663 | AJ4: =ROUND(AF4*AI4,0) -> 1207 | AK4: 4 | AL4: 3 | AM4: =AJ4+AK4+AL4 -> 1214 | AN4: 500 | AO4: 10000 | AP4: =AN4+AO4 -> 10500 | AQ4: =IF(AM4<0,-AM4,0) -> 0 | AR4: =+AP4+AQ4-AS4 -> 9286 | AS4: =IF(AQ4>0,0,(MIN(AM4,AP4))) -> 1214 | AT4: =AM4-AS4 -> 0 | AU4: 0 | AV4: =+IF(AM4<0,AU4,(AT4+AU4)) -> 0 | AW4: 0.065 | AX4: =IF(AV4>0,ROUND(AV4*AW4,0),0) -> 0 | AY4: 5 | AZ4: 5 | BA4: 5 | BB4: 5 | BC4: 5 | BD4: 5 | BE4: 5 | BF4: 5 | BG4: 5 | BH4: 5 | BI4: 5 | BJ4: 5 | BK4: 5 | BL4: 5 | BM4: =SUM(AY4:BL4) -> 70 | BN4: =MIN(AX4,BM4) -> 0 | BO4: =AX4-BN4 -> 0
A5: DT Trucking | B5: 546456789 | C5: Motor Carrier | D5: -554 | E5: 87324 | F5: 55 | G5: 54 | H5: 48 | I5: 664 | J5: 545 | K5: 66 | L5: 514 | M5: 44 | N5: 3437 | O5: 99 | P5: =SUM(E5:O5) -> 92850 | Q5: 11 | R5: 12 | S5: 13 | T5: 45 | U5: 77 | V5: 55 | W5: 21 | X5: 21 | Y5: 4 | Z5: 54 | AA5: =SUM(Q5:Z5) -> 313 | AB5: =D5+P5-AA5 -> 91983 | AC5: 11 | AD5: 54 | AE5: =AB5-(AC5+AD5) -> 91918 | AF5: =$AE$9 -> 725579 | AG5: 2000 | AH5: 5645 | AI5: =ROUND(ABS(IF($AH$9=0, 0, AG5/$AH$9)),6) -> 0.000333 | AJ5: =ROUND(AF5*AI5,0) -> 242 | AK5: 4 | AL5: 3 | AM5: =AJ5+AK5+AL5 -> 249 | AN5: 500 | AO5: 20000 | AP5: =AN5+AO5 -> 20500 | AQ5: =IF(AM5<0,-AM5,0) -> 0 | AR5: =+AP5+AQ5-AS5 -> 20251 | AS5: =IF(AQ5>0,0,(MIN(AM5,AP5))) -> 249 | AT5: =AM5-AS5 -> 0 | AU5: 0 | AV5: 0 | AW5: 0.065 | AX5: =IF(AV5>0,ROUND(AV5*AW5,0),0) -> 0 | AY5: 5 | AZ5: 5 | BA5: 5 | BB5: 5 | BC5: 5 | BD5: 5 | BE5: 5 | BF5: 5 | BG5: 5 | BH5: 5 | BI5: 5 | BJ5: 5 | BK5: 5 | BL5: 5 | BM5: =SUM(AY5:BL5) -> 70 | BN5: =MIN(AX5,BM5) -> 0 | BO5: =AX5-BN5 -> 0
A6: DTD Air | B6: 542029102 | C6: Motor Carrier | D6: 222222 | E6: 545 | F6: 787 | G6: 2 | H6: 45 | I6: 21 | J6: 87 | K6: 66 | L6: 4 | M6: 44 | N6: 222310 | O6: 999 | P6: =SUM(E6:O6) -> 224910 | Q6: 11 | R6: 12 | S6: 131 | T6: 454 | U6: 77 | V6: 44 | W6: 664 | X6: 2 | Y6: 4 | Z6: 21 | AA6: 1420 | AB6: 445712 | AC6: 11 | AD6: 45 | AE6: 445656 | AF6: =$AE$9 -> 725579 | AG6: 54484 | AH6: 5454 | AI6: =ROUND(ABS(IF($AH$9=0, 0, AG6/$AH$9)),6) -> 0.009063 | AJ6: =ROUND(AF6*AI6,0) -> 6576 | AK6: 4 | AL6: 3 | AM6: =AJ6+AK6+AL6 -> 6583 | AN6: 500 | AO6: 300 | AP6: =AN6+AO6 -> 800 | AQ6: =IF(AM6<0,-AM6,0) -> 0 | AR6: 0 | AS6: =IF(AQ6>0,0,(MIN(AM6,AP6))) -> 800 | AT6: =AM6-AS6 -> 5783 | AU6: 0 | AV6: 5783 | AW6: 0.065 | AX6: =IF(AV6>0,ROUND(AV6*AW6,0),0) -> 376 | AY6: 5 | AZ6: 5 | BA6: 5 | BB6: 5 | BC6: 5 | BD6: 5 | BE6: 5 | BF6: 5 | BG6: 5 | BH6: 5 | BI6: 5 | BJ6: 5 | BK6: 5 | BL6: 5 | BM6: =SUM(AY6:BL6) -> 70 | BN6: =MIN(AX6,BM6) -> 70 | BO6: =AX6-BN6 -> 306
A7: DTD Trucking | B7: 547897897 | C7: Motor Carrier | D7: 5558 | E7: 878 | F7: 55 | G7: 254 | H7: 42 | I7: 8 | J7: 45 | K7: 66 | L7: 12187 | M7: 44 | N7: 5646 | O7: 99 | P7: =SUM(E7:O7) -> 19324 | Q7: 11 | R7: 12 | S7: 31 | T7: 45 | U7: 77 | V7: 66 | W7: 88 | X7: 221 | Y7: 51 | Z7: 574 | AA7: 1176 | AB7: 23706 | AC7: 11 | AD7: 54 | AE7: 23641 | AF7: =$AE$9 -> 725579 | AG7: 545448 | AH7: 6000000 | AI7: 0.090727 | AJ7: =ROUND(AF7*AI7,0) -> 65830 | AK7: 4 | AL7: 3 | AM7: 65837 | AN7: 500 | AO7: 40000 | AP7: 40500 | AQ7: 0 | AR7: 0 | AS7: 40500 | AT7: 25337 | AU7: 0 | AV7: =+IF(AM7<0,AU7,(AT7+AU7)) -> 25337 | AW7: 0.065 | AX7: 1647 | AY7: 5 | AZ7: 5 | BA7: 5 | BB7: 5 | BC7: 5 | BD7: 5 | BE7: 5 | BF7: 5 | BG7: 5 | BH7: 5 | BI7: 5 | BJ7: 5 | BK7: 5 | BL7: 5 | BM7: 70 | BN7: 70 | BO7: 1577
A8: Eliminations | D8: 41 | E8: 55 | F8: 38 | G8: 97 | H8: 91 | I8: -992 | J8: -45 | K8: 64 | L8: 83 | M8: 76 | N8: 93 | O8: 96 | P8: =SUM(E8:O8) -> -344 | Q8: -996 | R8: 8 | S8: 8 | T8: 89 | U8: -92 | V8: 64 | W8: 85 | X8: 89 | Y8: 7 | Z8: 27 | AA8: -711 | AB8: 408 | AC8: 13 | AD8: -3 | AE8: 398 | AF8: 0 | AI8: 0 | AJ8: =ROUND(Table18[[#This Row],[10. Group income subject to apportionment for each member]]*Table18[[#This Row],[11. WV apportionment factor]],0) -> 0 | AR8: 0 | AU8: 0 | AW8: 0 | BN8: 0 | BO8: 0
A9: Combined | D9: =SUM(INDIRECT(ADDRESS(4,COLUMN(D9))&":"&ADDRESS(ROW(D9)-2,COLUMN(D9))))-D8 -> 228700 | E9: =SUM(INDIRECT(ADDRESS(4,COLUMN(E9))&":"&ADDRESS(ROW(E9)-2,COLUMN(E9))))-E8 -> 134246 | F9: =SUM(INDIRECT(ADDRESS(4,COLUMN(F9))&":"&ADDRESS(ROW(F9)-2,COLUMN(F9))))-F8 -> 1600 | G9: 7200 | H9: 6500 | I9: 2230 | J9: 1600 | K9: 200 | L9: 13500 | M9: 100 | N9: 232903 | O9: 101100 | P9: 501179 | Q9: 1040 | R9: 40 | S9: 180 | T9: 500 | U9: 400 | V9: 200 | W9: 700 | X9: 200 | Y9: 100 | Z9: 700 | AA9: 4060 | AB9: 725819 | AC9: 30 | AD9: 210 | AE9: 725579 | AF9: 0 | AG9: =SUM(AG4:AG7) -> 611932 | AH9: =SUM(AH4:AH7) -> 6011987 | AI9: 0 | AR9: -42763 | AS9: =SUM(AS4:AS7) -> 42763 | AU9: 0 | AV9: 0 | AW9: 0 | AX9: =SUM(AX4:AX7) -> 2023 | BN9: =SUM(BN4:BN7) -> 140 | BO9: =SUM(BO4:BO7) -> 1883
Q10: =SUMIF(Q4:Q7, ">0", Q4:Q7) -> 44 | R10: =SUMIF(R4:R7, ">0", R4:R7) -> 48 | S10: =SUMIF(S4:S7, ">0", S4:S7) -> 188 | T10: =SUMIF(T4:T7, ">0", T4:T7) -> 589 | U10: =SUMIF(U4:U7, ">0", U4:U7) -> 308 | V10: =SUMIF(V4:V7, ">0", V4:V7) -> 264 | W10: =SUMIF(W4:W7, ">0", W4:W7) -> 785 | X10: =SUMIF(X4:X7, ">0", X4:X7) -> 289 | Y10: =SUMIF(Y4:Y7, ">0", Y4:Y7) -> 107 | Z10: =SUMIF(Z4:Z7, ">0", Z4:Z7) -> 727 | AC10: =SUMIF(AC4:AC7, ">0", AC4:AC7) -> 43 | AD10: =SUMIF(AD4:AD7, ">0", AD4:AD7) -> 207

Sheet Financial Organizations
D1: Increasing Adjustments | Q1: Decreasing Adjustments | AB1: Taxable Income Calculation | AN1: NOL Section | AY1: Credits Section
AE2: =$AE$9 -> 2006635
A3: Name of Business | B3: FEIN | C3: Entity Type | D3: 1. Federal Taxable Income | E3: 2a. Interest or dividends from state/ local bond/securities | F3: 2b. US obligation interest/dividends not exempt from state tax | G3: 2c. Income/other tax based upon net income deducted on your federal return | H3: 2d. Federal depreciation/amorization for wholly WV corporation water/air polution control facilities | I3: 2e. Unrelated business taxable income of a corporation exempt from federal tax (IRC Sec. 512) | J3: 2f. Federal Net Operating Loss Deduction | K3: 2g. WV Neighborhood Investment Programs Tax Credit (charitable contributions to NIPA) | L3: 2h. Net operating loss from sources outside US. | M3: 2i. Foreign Taxes deducted on your federal return | N3: 2j. Add back for expenses related to certain REIT's and Regulated Investment Companies and certain interest and intangible expenses (WV Code §11-24-4b) | O3: 2k. Other increasing adjustments | P3: 3. Total increasing adjustments | Q3: 4a. Refund/credit on taxes based upon net income included in federal taxable income | R3: 4b. Interest expense on obligations/securities not allowed in determining federal taxable income | S3: 4c. Salary expense not allowed on federal return due to claiming federal jobs credit | T3: 4d. Foreign dividend gross-up (IRC Sec. 78) | U3: 4e. Subpart F income (IRC Sec. 951) | V3: 4f. Taxable income from sources outside US | W3: 4g. Cost of wholly WV water/air pollution control facilities | X3: 4h. Fed taxable income employer contributions to medical savings accounts withdrawn for non-medical purposes | Y3: 4i. Allowance for obligations/investments (Schedule B-1, line 9) | Z3: 4j. Other decreasing adjustments | AA3: 5. Total decreasing adjustments | AB3: 6. Adj. taxable income-add lines 1 & 3, subtract line 5 | AC3: 7. Total nonbusiness income allocated everywhere. | AD3: 8. Total non-unitary business income | AE3: 9. Income subject to apportionment | AF3: 10. Group income subject to apportionment for each member | AG3: WV Gross Receipts | AH3: Everywhere Gross Receipts per Entity | AI3: 11. WV apportionment factor | AJ3: 12. WV apportioned income | AK3: 13. Nonbusiness income allocated to WV | AL3: 14. Non-unitary business income apportioned to West Virginia | AM3: 15. WV taxable income | AN3: NOL 1. NOL carryforward generated as a result of a consolidated return filed prior to 2009. | AO3: NOL 2. NOL carryforward generated by the entity from an individual return or combined report. | AP3: NOL 3. Total NOL available for use by entity in this period | AQ3: NOL 4. NOL generated by entity in this period. | AR3: NOL 5. NOL available for use by entity in future periods | AS3: 16. WV net operating loss carryforward used in this period (cannot exceed NOL 3.) | AT3: 17. Subtotal (subtract 16 from 15) | AU3: 18. REIT Inclusion / other WV taxable Income | AV3: 19. WV net taxable income | AW3: 20. Tax rate | AX3: 21. WV income tax before credits | AY3: C1.a. Economic Opportunity Tax Credit (§11-13Q) Schedule WV/EOTC-1 | AZ3: C1.b. Manufacturing Investment Tax Credit (§11-13S) Schedule WV/MITC-1 | BA3: C1.c.Historic Rehabilitated Buildings Investment Credit (§11-24-23a) Schedule RBIC | BB3: C1.d. West Virginia Neighborhood Investment Program Credit (§11-13J) Form WV/NIPA-2 | BC3: C1.e. Environmental Agricultural Equipment Tax Credit (§11-13k) Form WV/AG-1 | BD3: C1.f. Electric, Gas, and Water Utilities Rate Reduction Credit (§11-24-11) Schedule L | BE3: C1.g. Telephone Utilities Rate Reduction Credit (§11-24-11a) Schedule K | BF3: C1.h. West Virginia Military Incentive Credit (§11-24-12) Schedule J | BG3: C1.i. Apprentice Training Tax Credit (§11-13w) Schedule WV/ATTC-1 | BH3: C1.j. Film Industry Tax Credit (§11-13x) Schedule WVFIIA-TCS | BI3: C1.k. Manufacturing Property Tax Adjustment Credit (§11-13Y) Schedule WV/MPTAC-1 | BJ3: C1.l. Alternative Fuel Tax Credit (§11-6d) Schedule AFTC-1 | BK3: C1.m. Innovative Mine Safety Technology Tax Credit (§11-13BB) Schedule IMSTTC-1 | BL3: C1.n. Farm to Food Bank Tax Credit (§11-13DD) | BM3: C2. Total Credits Claimed | BN3: C3. Total Credits available for use by entity this period | BO3: C4. WV net income tax
A4: DTD NY | B4: 200561309 | C4: Financial Organizations | D4: 10000 | E4: 100 | F4: 200 | G4: 300 | H4: 400 | I4: 500 | J4: 600 | K4: 700 | L4: 800 | M4: 900 | N4: 10 | O4: 1111 | P4: =SUM(E4:O4) -> 5621 | Q4: 50 | R4: 60 | S4: 70 | T4: 88 | U4: 44 | V4: 33 | W4: 87 | X4: 54 | Y4: 44 | Z4: 78 | AA4: =SUM(Q4:Z4) -> 608 | AB4: =D4+P4-AA4 -> 15013 | AC4: 20 | AD4: 30 | AE4: =AB4-(AC4+AD4) -> 14963 | AF4: =$AE$9 -> 2006635 | AG4: 6454 | AH4: 5555 | AI4: =ROUND(ABS(IF($AH$9=0, 0, AG4/$AH$9)),6) -> 0.043455 | AJ4: =ROUND(AF4*AI4,0) -> 87198 | AK4: 5 | AL4: 3 | AM4: =AJ4+AK4+AL4 -> 87206 | AN4: 1000 | AO4: 2000 | AP4: =AN4+AO4 -> 3000 | AQ4: =IF(AM4<0,-AM4,0) -> 0 | AR4: =+AP4+AQ4-AS4 -> 0 | AS4: =IF(AQ4>0,0,(MIN(AM4,AP4))) -> 3000 | AT4: =AM4-AS4 -> 84206 | AU4: 0 | AV4: =+IF(AM4<0,AU4,(AT4+AU4)) -> 84206 | AW4: 0.065 | AX4: =IF(AV4>0,ROUND(AV4*AW4,0),0) -> 5473 | AY4: 5 | AZ4: 5 | BA4: 5 | BB4: 5 | BC4: 5 | BD4: 5 | BE4: 5 | BF4: 5 | BG4: 5 | BH4: 5 | BI4: 5 | BJ4: 5 | BK4: 5 | BL4: 5 | BM4: =SUM(AY4:BL4) -> 70 | BN4: =MIN(AX4,BM4) -> 70 | BO4: =AX4-BN4 -> 5403
A5: DTD FL | B5: 560903183 | C5: Financial Organizations | D5: 2000000 | E5: 100 | F5: 200 | G5: 300 | H5: 400 | I5: 500 | J5: 600 | K5: 700 | L5: 800 | M5: 900 | N5: 15 | O5: 2222 | P5: =SUM(E5:O5) -> 6737 | Q5: 50 | R5: 60 | S5: 77 | T5: 88 | U5: 44 | V5: 44 | W5: 54 | X5: 54 | Y5: 99 | Z5: 21 | AA5: =SUM(Q5:Z5) -> 591 | AB5: =D5+P5-AA5 -> 2006146 | AC5: 20 | AD5: 30 | AE5: =AB5-(AC5+AD5) -> 2006096 | AF5: =$AE$9 -> 2006635 | AG5: 100 | AH5: 54545 | AI5: =ROUND(ABS(IF($AH$9=0, 0, AG5/$AH$9)),6) -> 0.000673 | AJ5: =ROUND(AF5*AI5,0) -> 1350 | AK5: 5 | AL5: 3 | AM5: =AJ5+AK5+AL5 -> 1358 | AN5: 3000 | AO5: 4000 | AP5: =AN5+AO5 -> 7000 | AQ5: =IF(AM5<0,-AM5,0) -> 0 | AR5: =+AP5+AQ5-AS5 -> 5642 | AS5: =IF(AQ5>0,0,(MIN(AM5,AP5))) -> 1358 | AT5: =AM5-AS5 -> 0 | AU5: 0 | AV5: 0 | AW5: 0.065 | AX5: =IF(AV5>0,ROUND(AV5*AW5,0),0) -> 0 | AY5: 5 | AZ5: 5 | BA5: 5 | BB5: 5 | BC5: 5 | BD5: 5 | BE5: 5 | BF5: 5 | BG5: 5 | BH5: 5 | BI5: 5 | BJ5: 5 | BK5: 5 | BL5: 5 | BM5: =SUM(AY5:BL5) -> 70 | BN5: =MIN(AX5,BM5) -> 0 | BO5: =AX5-BN5 -> 0
A6: DTD WV | B6: 541080403 | C6: Financial Organizations | D6: -30000 | E6: 100 | F6: 200 | G6: 300 | H6: 400 | I6: 500 | J6: 600 | K6: 700 | L6: 800 | M6: 900 | N6: 25 | O6: 3333 | P6: 7858 | Q6: 50 | R6: 60 | S6: 77 | T6: 88 | U6: 66 | V6: 55 | W6: 54 | X6: 334 | Y6: 55 | Z6: 54 | AA6: 893 | AB6: -23035 | AC6: 20 | AD6: 30 | AE6: -23085 | AF6: =$AE$9 -> 2006635 | AG6: 200 | AH6: 544 | AI6: =ROUND(ABS(IF($AH$9=0, 0, AG6/$AH$9)),6) -> 0.001347 | AJ6: =ROUND(AF6*AI6,0) -> 2703 | AK6: 5 | AL6: 3 | AM6: =AJ6+AK6+AL6 -> 2711 | AN6: 5000 | AO6: 6000 | AP6: =AN6+AO6 -> 11000 | AQ6: 0 | AR6: 8289 | AS6: =IF(AQ6>0,0,(MIN(AM6,AP6))) -> 2711 | AT6: =AM6-AS6 -> 0 | AU6: 0 | AV6: 0 | AW6: 0.065 | AX6: =IF(AV6>0,ROUND(AV6*AW6,0),0) -> 0 | AY6: 5 | AZ6: 5 | BA6: 5 | BB6: 5 | BC6: 5 | BD6: 5 | BE6: 5 | BF6: 5 | BG6: 5 | BH6: 5 | BI6: 5 | BJ6: 5 | BK6: 5 | BL6: 5 | BM6: =SUM(AY6:BL6) -> 70 | BN6: =MIN(AX6,BM6) -> 0 | BO6: =AX6-BN6 -> 0
A7: DTD CA | B7: 560992562 | C7: Financial Organizations | D7: 1566 | E7: 100 | F7: 200 | G7: 300 | H7: 400 | I7: 500 | J7: 600 | K7: 700 | L7: 800 | M7: 900 | N7: 35 | O7: 4444 | P7: 8979 | Q7: 50 | R7: 60 | S7: 77 | T7: 999 | U7: 55 | V7: 99 | W7: 88 | X7: 221 | Y7: 44 | Z7: 8 | AA7: 1701 | AB7: 8844 | AC7: 20 | AD7: 30 | AE7: 8794 | AF7: 2006635 | AG7: 300 | AH7: 87878 | AI7: 0.00202 | AJ7: 4053 | AK7: 5 | AL7: 3 | AM7: 4061 | AN7: 7000 | AO7: 8000 | AP7: 15000 | AQ7: 0 | AR7: 10939 | AS7: =IF(AQ7>0,0,(MIN(AM7,AP7))) -> 4061 | AT7: 0 | AU7: 0 | AV7: =+IF(AM7<0,AU7,(AT7+AU7)) -> 0 | AW7: 0.065 | AX7: 0 | AY7: 5 | AZ7: 5 | BA7: 5 | BB7: 5 | BC7: 5 | BD7: 5 | BE7: 5 | BF7: 5 | BG7: 5 | BH7: 5 | BI7: 5 | BJ7: 5 | BK7: 5 | BL7: 5 | BM7: 70 | BN7: 0 | BO7: 0
A8: Eliminations | D8: 66 | E8: 60 | F8: 70 | G8: 80 | H8: 90 | I8: 5 | J8: -90 | K8: 15 | L8: -80 | M8: -75 | N8: 5 | O8: 110 | P8: 190 | Q8: -95 | R8: 40 | S8: -99 | T8: 63 | U8: -91 | V8: 31 | W8: 83 | X8: 63 | Y8: 42 | Z8: 61 | AA8: 98 | AB8: 158 | AC8: 75 | AD8: -50 | AE8: 133 | AF8: 0 | AJ8: =ROUND(Table1[[#This Row],[10. Group income subject to apportionment for each member]]*Table1[[#This Row],[11. WV apportionment factor]],0) -> 0 | AR8: 0 | AU8: 0 | AW8: 0 | AY8: 0 | AZ8: 0 | BL8: 0 | BM8: 0 | BN8: 0 | BO8: 0
A9: Combined | D9: =(SUM(D4:D7))-D8 -> 1981500 | E9: =E10-E8 -> 340 | F9: 730 | G9: 1120 | H9: 1510 | I9: 1995 | J9: 2490 | K9: 2785 | L9: 3280 | M9: 3675 | N9: 80 | O9: 11000 | P9: 29005 | Q9: =Q10-Q8 -> 295 | R9: =R10-R8 -> 200 | S9: =S10-S8 -> 400 | T9: 1200 | U9: 300 | V9: 200 | W9: 200 | X9: 600 | Y9: 200 | Z9: 100 | AA9: 3695 | AB9: 2006810 | AC9: =AC10-AC8 -> 5 | AD9: =AD10-AD8 -> 170 | AE9: 2006635 | AF9: 0 | AG9: =SUM(AG4:AG7) -> 7054 | AH9: =SUM(AH4:AH7) -> 148522 | AI9: =SUM(AI4:AI7) -> 0.047495 | AR9: -11130 | AS9: =SUM(AS4:AS7) -> 11130 | AU9: 0 | AV9: 0 | AW9: 0 | AX9: =SUM(AX4:AX7) -> 5473 | AY9: 0 | AZ9: 0 | BA9: 0 | BL9: 0 | BM9: 0 | BN9: =SUM(BN4:BN7) -> 70 | BO9: =SUM(BO4:BO7) -> 5403
D10: =SUMIF(D4:D7, ">0", D4:D7) -> 2011566 | E10: =SUMIF(E4:E7, ">0", E4:E7) -> 400 | F10: =SUMIF(F4:F7, ">0", F4:F7) -> 800 | G10: =SUMIF(G4:G7, ">0", G4:G7) -> 1200 | H10: =SUMIF(H4:H7, ">0", H4:H7) -> 1600 | I10: =SUMIF(I4:I7, ">0", I4:I7) -> 2000 | J10: =SUMIF(J4:J7, ">0", J4:J7) -> 2400 | K10: =SUMIF(K4:K7, ">0", K4:K7) -> 2800 | L10: =SUMIF(L4:L7, ">0", L4:L7) -> 3200 | M10: =SUMIF(M4:M7, ">0", M4:M7) -> 3600 | N10: =SUMIF(N4:N7, ">0", N4:N7) -> 85 | O10: =SUMIF(O4:O7, ">0", O4:O7) -> 11110 | Q10: =SUMIF(Q4:Q7, ">0", Q4:Q7) -> 200 | R10: =SUMIF(R4:R7, ">0", R4:R7) -> 240 | S10: =SUMIF(S4:S7, ">0", S4:S7) -> 301 | T10: =SUMIF(T4:T7, ">0", T4:T7) -> 1263 | U10: =SUMIF(U4:U7, ">0", U4:U7) -> 209 | V10: =SUMIF(V4:V7, ">0", V4:V7) -> 231 | W10: =SUMIF(W4:W7, ">0", W4:W7) -> 283 | X10: =SUMIF(X4:X7, ">0", X4:X7) -> 663 | Y10: =SUMIF(Y4:Y7, ">0", Y4:Y7) -> 242 | Z10: =SUMIF(Z4:Z7, ">0", Z4:Z7) -> 161 | AC10: =SUMIF(AC4:AC7, ">0", AC4:AC7) -> 80 | AD10: =SUMIF(AD4:AD7, ">0", AD4:AD7) -> 120
